bitfinex/quotes_ETHUSD_20241130
["timestamp","ask_amount","ask_price","bid_price","bid_amount"]
[1732969142269,65.68083652,3663.3,3663.2,3.00275]
[1732969142419,67.30681941,3663.3,3663.2,2.72985]
[1732969142619,65.68083652,3663.3,3663.2,2.72985]
[1732969143856,66.79083652,3663.3,3663.2,2.72985]
[1732969145564,67.90083652,3663.3,3663.2,2.72985]
[1732969147406,69.01083652,3663.3,3663.2,2.72985]
[1732969149014,70.12083652,3663.3,3663.2,2.72985]
[1732969149864,70.12083652,3663.3,3663.2,3.00275]
[1732969150202,68.50223652,3663.3,3663.2,3.00275]
[1732969150610,69.61223652,3663.3,3663.2,3.00275]
[1732969151198,69.61223652,3663.3,3663.2,6.55275]
[1732969152282,70.72223652,3663.3,3663.2,6.55275]
[1732969153911,71.83223652,3663.3,3663.2,6.55275]
[1732969154877,70.46734652,3663.3,3663.2,6.55275]
[1732969155575,71.57734652,3663.3,3663.2,6.55275]
[1732969157328,72.68734652,3663.3,3663.2,6.55275]
[1732969159021,73.79734652,3663.3,3663.2,6.55275]
[1732969159799,73.79734652,3663.3,3663.2,5.72985]
[1732969160632,74.90734652,3663.3,3663.2,5.72985]
[1732969160954,74.90734652,3663.3,3663.2,6.00265]
[1732969162271,76.01734652,3663.3,3663.2,6.00265]
[1732969164087,77.12734652,3663.3,3663.2,6.00265]
[1732969165732,79.82724652,3663.3,3663.2,6.00265]
[1732969165932,82.55308199,3663.3,3663.2,2.72985]
[1732969167210,83.66308199,3663.3,3663.2,2.72985]
[1732969169340,84.77308199,3663.3,3663.2,2.72985]
[1732969169909,84.77308199,3663.3,3663.2,3.00265]
[1732969170716,84.77308199,3663.3,3663.2,0.2728]
[1732969170950,85.88308199,3663.3,3663.2,0.2728]
[1732969171923,85.88308199,3663.3,3663.2,2.72985]
[1732969172514,85.88308199,3663.3,3663.1,0.01652258]
[1732969172815,86.99308199,3663.3,3663.1,2.74641258]
[1732969173257,86.99308199,3663.3,3663.2,2.72985]
[1732969174345,88.10308199,3663.3,3663.2,2.72985]
[1732969175939,89.21308199,3663.3,3663.2,2.72985]
[1732969177563,90.32308199,3663.3,3663.2,2.72985]
[1732969178662,87.59724652,3663.3,3663.2,2.72985]
[1732969179170,88.70724652,3663.3,3663.2,2.72985]
[1732969179666,87.11734652,3663.3,3663.2,2.72985]
[1732969180023,87.11734652,3663.3,3663.2,3.00265]
[1732969180663,88.22734652,3663.3,3663.2,3.00265]
[1732969181334,89.73164652,3663.3,3663.2,3.00265]
[1732969181982,89.73164652,3663.3,3663.2,2.72985]
[1732969182490,90.84164652,3663.3,3663.2,2.72985]
[1732969183495,89.33734652,3663.3,3663.2,2.72985]
[1732969183999,90.44734652,3663.3,3663.2,2.72985]
[1732969185155,90.44734652,3663.3,3663.1,0.28932258]
[1732969185493,90.44734652,3663.3,3663.1,2.74644258]
[1732969185494,1.5043,3663.2,3663.1,2.74644258]
[1732969187372,2.6143,3663.2,3663.1,2.74644258]
[1732969188852,2.6143,3663.2,3663.1,0.01652258]
[1732969189195,3.7243,3663.2,3663.1,0.01652258]
[1732969189399,6.45013547,3663.2,3663.1,0.01652258]
[1732969190762,7.56013547,3663.2,3663.1,0.01652258]
[1732969192374,8.67013547,3663.2,3663.1,0.01652258]
[1732969193671,8.67013547,3663.2,3663.1,2.74644258]
[1732969194210,9.78013547,3663.2,3663.1,2.74644258]
[1732969194729,5.55,3663.2,3663.1,2.74644258]
[1732969195739,6.66,3663.2,3663.1,2.74644258]
[1732969197646,7.77,3663.2,3663.1,2.74644258]
[1732969199092,8.88,3663.2,3663.1,2.74644258]
[1732969200139,8.88,3663.2,3663.1,5.74644258]
[1732969200694,9.99,3663.2,3663.1,5.74644258]
[1732969202393,11.1,3663.2,3663.1,5.74644258]
[1732969202826,11.1,3663.2,3663.1,6.01924258]
[1732969203193,11.49986995,3663.2,3663.1,2.74644258]
[1732969204234,12.60986995,3663.2,3663.1,2.74644258]
[1732969205808,12.60986995,3663.2,3663.1,0.01652258]
[1732969206015,13.71986995,3663.2,3663.1,0.01652258]
[1732969206716,13.71986995,3663.2,3663.1,2.74644258]
[1732969207844,14.82986995,3663.2,3663.1,2.74644258]
[1732969209333,15.93986995,3663.2,3663.1,2.74644258]
[1732969210616,15.54,3663.2,3663.1,2.74644258]
[1732969211157,16.65,3663.2,3663.1,2.74644258]
[1732969212423,16.65,3663.2,3663.1,6.01924258]
[1732969212858,17.76,3663.2,3663.1,6.01924258]
[1732969214574,18.87,3663.2,3663.1,6.01924258]
[1732969216147,19.98,3663.2,3663.1,6.01924258]
[1732969217963,21.09,3663.2,3663.1,6.01924258]
[1732969219462,22.2,3663.2,3663.1,6.01924258]
[1732969221096,23.31,3663.2,3663.1,6.01924258]
[1732969222790,24.42,3663.2,3663.1,6.01924258]
[1732969224483,25.53,3663.2,3663.1,6.01924258]
[1732969226391,26.64,3663.2,3663.1,6.01924258]
[1732969227851,27.75,3663.2,3663.1,6.56924258]
[1732969229695,28.86,3663.2,3663.1,6.56924258]
[1732969230496,28.86,3663.2,3663.1,7.51370591]
[1732969231541,29.97,3663.2,3663.1,7.51370591]
[1732969233255,31.08,3663.2,3663.1,7.51370591]
[1732969233590,24.25543,3663.2,3663.1,7.51370591]
[1732969234730,21.27076,3663.2,3663.1,7.51370591]
[1732969234886,19.90587,3663.2,3663.1,7.51370591]
[1732969236028,8.51544198,3663.2,3663.1,8.01871695]
[1732969236250,8.51544198,3663.2,3663.1,6.97425362]
[1732969236538,8.51544198,3663.2,3663.1,6.56924258]
[1732969236539,2.72244631,3663.2,3663.1,6.56924258]
[1732969236737,2.72244631,3663.2,3663.1,6.55272]
[1732969237989,1.10266631,3663.2,3663.1,6.55272]
[1732969239421,87.20045283,3663.3,3663.2,6.55265]
[1732969240268,84.47067283,3663.3,3663.2,6.56917213]
[1732969240470,83.10578283,3663.3,3663.2,6.56917213]
[1732969240889,80.35948076,3663.3,3663.2,6.55265]
[1732969241300,80.35948076,3663.3,3663.2,7.05766104]
[1732969241301,63.9297656,3663.3,3663.2,7.05766104]
[1732969241609,62.78574557,3663.3,3663.2,11.12937297]
[1732969242272,58.64284126,3663.3,3663.2,11.02937297]
[1732969242889,59.75284126,3663.3,3663.2,11.02937297]
[1732969243308,57.02306126,3663.3,3663.2,11.02937297]
[1732969243600,55.65817126,3663.3,3663.2,7.02937297]
[1732969244258,45.63271324,3663.3,3663.2,7.02937297]
[1732969244459,46.74271324,3663.3,3663.2,7.02937297]
[1732969245469,44.01293324,3663.3,3663.2,7.02937297]
[1732969245708,41.28315324,3663.3,3663.2,7.02937297]
[1732969246070,42.39315324,3663.3,3663.2,7.02937297]
[1732969246477,41.02826324,3663.3,3663.2,11.02937297]
[1732969246824,39.66337324,3663.3,3663.2,11.02937297]
[1732969247404,38.2666093,3663.3,3663.2,11.02937297]
[1732969247713,35.2819393,3663.3,3663.2,11.02937297]
[1732969248286,33.9170493,3663.3,3663.2,11.02937297]
[1732969248784,29.8223793,3663.3,3663.2,11.02937297]
[1732969249215,28.4575293,3663.3,3663.2,11.02937297]
[1732969249387,28.2026393,3663.3,3663.2,11.02937297]
[1732969250919,25.2180893,3663.3,3663.2,11.02937297]
[1732969251120,23.8532393,3663.3,3663.2,11.02937297]
[1732969251523,22.4883893,3663.3,3663.2,11.02937297]
[1732969251823,18.3938393,3663.3,3663.2,11.9738363]
[1732969252118,17.0289893,3663.3,3663.2,13.0653083]
[1732969252328,15.6641393,3663.3,3663.2,13.0653083]
[1732969252473,11.3147393,3663.3,3663.2,9.0653083]
[1732969253280,8.5849593,3663.3,3663.2,9.0653083]
[1732969253615,4.4902893,3663.3,3663.2,4.71583393]
[1732969253779,4.4902893,3663.3,3663.2,5.66029726]
[1732969254303,5.6002893,3663.3,3663.2,5.66029726]
[1732969255186,5.6002893,3663.3,3663.2,8.66029726]
[1732969255393,5.6002893,3663.3,3663.2,12.66029726]
[1732969256183,6.7102893,3663.3,3663.2,12.66029726]
[1732969256382,6.7102893,3663.3,3663.2,8.66029726]
[1732969257892,7.8202893,3663.3,3663.2,8.66029726]
[1732969259634,8.9302893,3663.3,3663.2,8.66029726]
[1732969260506,10.5094893,3663.3,3663.2,4.16583393]
[1732969260723,7.5653993,3663.3,3663.2,4.16583393]
[1732969261215,8.6753993,3663.3,3663.2,4.16583393]
[1732969261804,8.6753993,3663.3,3663.2,7.71583393]
[1732969262845,9.7853993,3663.3,3663.2,7.71583393]
[1732969264519,10.8953993,3663.3,3663.2,7.71583393]
[1732969265947,12.0053993,3663.3,3663.2,7.71583393]
[1732969267836,13.1153993,3663.3,3663.2,7.71583393]
[1732969268394,13.07922886,3663.3,3663.2,7.71583393]
[1732969269340,14.18922886,3663.3,3663.2,7.71583393]
[1732969270957,13.93433886,3663.3,3663.2,7.71583393]
[1732969271168,11.20463886,3663.3,3663.2,7.71583393]
[1732969272225,7.75393839,3663.3,3663.2,7.71583393]
[1732969272564,4.76947839,3663.3,3663.2,7.71583393]
[1732969274366,1.78494839,3663.3,3663.2,7.71583393]
[1732969274539,8.39e-06,3663.3,3663.2,8.66029726]
[1732969275356,7.51515839,3663.4,3663.3,6.55257]
[1732969275549,3.42063839,3663.4,3663.3,6.55257]
[1732969275759,3.16578839,3663.4,3663.3,6.62199427]
[1732969277705,4.27578839,3663.4,3663.3,6.62199427]
[1732969277918,2.91093839,3663.4,3663.3,6.62199427]
[1732969278137,1.54608839,3663.4,3663.3,6.62199427]
[1732969279416,0.48573956,3663.5,3663.3,6.62199427]
[1732969279584,9.56e-06,3663.5,3663.4,6.5525]
[1732969280040,9.56e-06,3663.5,3663.4,6.62189109]
[1732969281288,1.11000956,3663.5,3663.4,6.62189109]
[1732969281695,9.56e-06,3663.5,3663.4,6.62189109]
[1732969282302,5.55,3663.6,3663.4,6.62189109]
[1732969282303,9.56e-06,3663.6,3663.5,6.55243]
[1732969282531,9.56e-06,3663.6,3663.5,7.56624181]
[1732969283334,9.56e-06,3663.6,3663.5,6.62177848]
[1732969283829,1.561,3664.1,3663.6,0.55]
[1732969284035,1.561,3664.1,3664.0,3.00205]
[1732969284325,1.561,3664.1,3664.0,6.62123263]
[1732969284992,2.671,3664.1,3664.0,6.62123263]
[1732969286736,3.781,3664.1,3664.0,6.62123263]
[1732969288343,4.891,3664.1,3664.0,6.62123263]
[1732969289213,4.891,3664.1,3664.0,6.07123263]
[1732969289413,4.833,3664.1,3664.0,6.07123263]
[1732969289997,5.943,3664.1,3664.0,6.07123263]
[1732969290968,5.943,3664.1,3664.0,6.62123263]
[1732969291701,7.053,3664.1,3664.0,6.62123263]
[1732969293403,8.163,3664.1,3664.0,6.62123263]
[1732969295030,9.273,3664.1,3664.0,6.62123263]
[1732969296782,10.383,3664.1,3664.0,6.62123263]
[1732969298431,11.493,3664.1,3664.0,6.62123263]
[1732969300175,12.603,3664.1,3664.0,6.62123263]
[1732969301735,13.713,3664.1,3664.0,6.62123263]
[1732969301939,12.21,3664.1,3664.0,6.62123263]
[1732969302957,6.75164,3664.1,3664.0,6.62123263]
[1732969303157,5.38705,3664.1,3664.0,6.62123263]
[1732969303525,5.13246,3664.1,3664.0,6.62123263]
[1732969305053,6.24246,3664.1,3664.0,6.62123263]
[1732969306902,1.89426,3664.1,3664.0,6.62123263]
[1732969307057,0.52974,3664.1,3664.0,6.62123263]
[1732969307260,1.13064,3664.2,3664.1,3.8228]
[1732969307489,9.48096,3664.3,3664.2,3.0019]
[1732969307670,9.48096,3664.3,3664.2,6.5519]
[1732969307873,9.48096,3664.3,3664.2,6.62097994]
[1732969308512,6.4974,3664.3,3664.2,6.62097994]
[1732969309473,1e-05,3664.3,3664.2,6.62097994]
[1732969310399,1.11001,3664.3,3664.2,6.62097994]
[1732969310700,1.11001,3664.3,3664.2,6.61347994]
[1732969312405,2.22001,3664.3,3664.2,6.61347994]
[1732969313900,3.33001,3664.3,3664.2,7.17158215]
[1732969315603,4.44001,3664.3,3664.2,7.17158215]
[1732969317350,5.55001,3664.3,3664.2,7.17158215]
[1732969319215,6.66001,3664.3,3664.2,7.17158215]
[1732969321048,7.77001,3664.3,3664.2,7.17158215]
[1732969321440,7.77001,3664.3,3664.2,4.17158215]
[1732969321655,9.33141,3664.3,3664.2,3.62158215]
[1732969322649,10.44141,3664.3,3664.2,3.62158215]
[1732969323053,10.44141,3664.3,3664.2,6.62158215]
[1732969323216,10.44141,3664.3,3664.2,7.17158215]
[1732969324211,11.55141,3664.3,3664.2,7.17158215]
[1732969325969,12.66141,3664.3,3664.2,7.17158215]
[1732969327453,13.77141,3664.3,3664.2,7.17158215]
[1732969329147,14.88141,3664.3,3664.2,7.17158215]
[1732969330748,15.99141,3664.3,3664.2,7.17158215]
[1732969330927,15.99141,3664.3,3664.2,6.62158215]
[1732969331251,15.99141,3664.3,3664.2,6.06347994]
[1732969331433,18.4865994,3664.3,3664.2,6.06347994]
[1732969332375,19.5965994,3664.3,3664.2,6.06347994]
[1732969332837,19.5965994,3664.3,3664.2,3.06347994]
[1732969334051,20.7065994,3664.3,3664.2,6.06347994]
[1732969335630,21.8165994,3664.3,3664.2,6.06347994]
[1732969337185,22.9265994,3664.3,3664.2,6.06347994]
[1732969338920,24.0365994,3664.3,3664.2,6.06347994]
[1732969340430,21.54141,3664.3,3664.2,6.06347994]
[1732969340582,22.65141,3664.3,3664.2,6.06347994]
[1732969341340,22.65141,3664.3,3664.2,6.61347994]
[1732969342423,23.76141,3664.3,3664.2,6.61347994]
[1732969343222,22.20001,3664.3,3664.2,6.61347994]
[1732969344000,23.31001,3664.3,3664.2,6.61347994]
[1732969344393,23.31001,3664.3,3664.2,6.06347994]
[1732969344394,24.88311,3664.3,3664.2,6.06347994]
[1732969344627,27.60894547,3664.3,3664.2,6.06347994]
[1732969346339,25.99311,3664.3,3664.2,6.06347994]
[1732969347541,27.10311,3664.3,3664.2,6.06347994]
[1732969349143,28.21311,3664.3,3664.2,6.06347994]
[1732969350650,29.32311,3664.3,3664.2,6.06347994]
[1732969352550,25.43311,3664.3,3664.2,6.06347994]
[1732969354137,26.54311,3664.3,3664.2,6.06347994]
[1732969355954,27.65311,3664.3,3664.2,6.06347994]
[1732969357529,28.76311,3664.3,3664.2,6.06347994]
[1732969359330,29.87311,3664.3,3664.2,6.06347994]
[1732969361168,30.98311,3664.3,3664.2,6.06347994]
[1732969362859,32.09311,3664.3,3664.2,6.06347994]
[1732969364572,35.92894547,3664.3,3664.2,6.06347994]
[1732969364740,35.92894547,3664.3,3664.2,0.06907994]
[1732969364939,36.8734088,3664.3,3664.1,2.72917]
[1732969365160,1.5567,3664.2,3664.1,2.72917]
[1732969366149,1.11,3664.2,3664.1,5.72917]
[1732969366372,5.39253547,3664.2,3664.1,5.72917]
[1732969366571,5.39253547,3664.2,3664.1,5.79609161]
[1732969368076,6.50253547,3664.2,3664.1,5.79609161]
[1732969368275,3.7767,3664.2,3664.1,5.79609161]
[1732969369585,4.8867,3664.2,3664.1,5.79609161]
[1732969370607,3.33,3664.2,3664.1,5.79609161]
[1732969370762,3.33,3664.2,3664.1,6.06889161]
[1732969371388,4.44,3664.2,3664.1,6.06889161]
[1732969373008,5.55,3664.2,3664.1,6.06889161]
[1732969374795,6.66,3664.2,3664.1,6.06889161]
[1732969376418,7.77,3664.2,3664.1,6.06889161]
[1732969378021,8.88,3664.2,3664.1,6.06889161]
[1732969379619,9.99,3664.2,3664.1,6.06889161]
[1732969380331,9.99,3664.2,3664.1,6.61889161]
[1732969380634,9.99,3664.2,3664.1,6.06889161]
[1732969381330,12.6917,3664.2,3664.1,6.06889161]
[1732969382902,13.8017,3664.2,3664.1,6.06889161]
[1732969384400,14.9117,3664.2,3664.1,6.06889161]
[1732969384598,13.32,3664.2,3664.1,6.06889161]
[1732969386120,14.43,3664.2,3664.1,6.06889161]
[1732969387267,14.43,3664.2,3664.1,6.61889161]
[1732969387472,13.06545,3664.2,3664.1,6.61889161]
[1732969387642,8.71725,3664.2,3664.1,6.61889161]
[1732969388465,4.62363,3664.2,3664.1,6.61889161]
[1732969390128,1.63998,3664.2,3664.1,6.61889161]
[1732969390725,30.54095,3664.3,3664.2,3.5519]
[1732969391034,30.54095,3664.3,3664.2,6.61844367]
[1732969391922,30.54095,3664.3,3664.2,7.562907]
[1732969392428,26.19287,3664.3,3664.2,7.562907]
[1732969392636,24.82835,3664.3,3664.2,7.562907]
[1732969394035,25.93835,3664.3,3664.2,7.562907]
[1732969395059,20.48027,3664.3,3664.2,7.562907]
[1732969395262,19.11575,3664.3,3664.2,7.562907]
[1732969395567,17.49671,3664.3,3664.2,7.562907]
[1732969395872,13.40315,3664.3,3664.2,7.562907]
[1732969396232,12.03863,3664.3,3664.2,7.562907]
[1732969397094,7.94507,3664.3,3664.2,7.562907]
[1732969397278,6.32603,3664.3,3664.2,7.562907]
[1732969397607,4.96151,3664.3,3664.2,7.562907]
[1732969398989,0.06409676,3664.3,3664.2,7.562907]
[1732969399287,0.06409676,3664.3,3664.2,6.61844367]
[1732969400665,1.17409676,3664.3,3664.2,6.61844367]
[1732969402368,2.28409676,3664.3,3664.2,6.61844367]
[1732969404138,3.39409676,3664.3,3664.2,6.61844367]
[1732969405989,4.50409676,3664.3,3664.2,7.562907]
[1732969407594,5.61409676,3664.3,3664.2,7.562907]
[1732969408710,1.52053676,3664.3,3664.2,7.562907]
[1732969408913,0.15601676,3664.3,3664.2,6.61844367]
[1732969409447,1.26601676,3664.3,3664.2,6.61844367]
[1732969410922,1.01149676,3664.3,3664.2,6.61844367]
[1732969411126,6.76e-06,3664.3,3664.2,6.61844367]
[1732969412455,1.11000676,3664.3,3664.2,6.61844367]
[1732969414211,6.76e-06,3664.3,3664.2,6.61844367]
[1732969414412,6.76e-06,3664.3,3664.2,7.562907]
[1732969416059,1.11000676,3664.3,3664.2,7.562907]
[1732969417508,2.22000676,3664.3,3664.2,7.562907]
[1732969419194,3.33000676,3664.3,3664.2,7.562907]
[1732969420802,4.44000676,3664.3,3664.2,7.562907]
[1732969422302,5.55000676,3664.3,3664.2,7.562907]
[1732969423958,2.56644676,3664.3,3664.2,7.562907]
[1732969424160,6.76e-06,3664.3,3664.2,7.562907]
[1732969425661,1.11000676,3664.3,3664.2,7.562907]
[1732969425858,6.76e-06,3664.3,3664.2,7.562907]
[1732969430754,2.39273076,3664.5,3664.4,3.55175]
[1732969430903,2.39273076,3664.5,3664.4,6.55175]
[1732969431304,2.39273076,3664.5,3664.4,6.96788488]
[1732969432430,2.13829076,3664.5,3664.4,6.96788488]
[1732969432732,0.77385076,3664.5,3664.4,7.91234821]
[1732969433439,0.77385076,3664.5,3664.4,7.5616404]
[1732969434306,7.6e-07,3664.5,3664.4,7.5616404]
[1732969440971,1.11000076,3664.5,3664.4,7.5616404]
[1732969442582,2.22000076,3664.5,3664.4,7.5616404]
[1732969443360,7.6e-07,3664.5,3664.4,7.5616404]
[1732969446395,7.6e-07,3664.6,3664.5,6.55168]
[1732969446908,7.6e-07,3664.6,3664.5,6.6170598]
[1732969447460,1.11000076,3664.6,3664.5,6.6170598]
[1732969449255,7.6e-07,3664.6,3664.5,6.6170598]
[1732969450782,7.6e-07,3664.6,3664.5,7.17114806]
[1732969452390,7.6e-07,3665.0,3664.8,0.2728]
[1732969452593,7.6e-07,3665.0,3664.9,6.55138]
[1732969452812,7.6e-07,3665.0,3664.9,6.96733158]
[1732969455931,7.6e-07,3665.0,3664.9,6.61662377]
[1732969457213,7.6e-07,3665.2,3665.1,6.55123]
[1732969457524,1.63550076,3665.2,3665.1,6.61640747]
[1732969459127,2.74550076,3665.2,3665.1,6.61640747]
[1732969460829,3.85550076,3665.2,3665.1,6.61640747]
[1732969462308,3.33000076,3665.2,3665.1,6.61640747]
[1732969462504,0.60164076,3665.2,3665.1,6.61640747]
[1732969462740,7.6e-07,3665.2,3665.1,6.61640747]
[1732969463827,1.11000076,3665.2,3665.1,6.61640747]
[1732969464127,1.11000076,3665.2,3665.1,7.16705088]
[1732969465334,0.015,3666.3,3665.2,6.55116]
[1732969465575,0.015,3666.3,3666.2,2.72761]
[1732969466041,0.015,3666.3,3666.2,2.79228627]
[1732969467172,1.125,3666.3,3666.2,6.34228627]
[1732969467465,1.125,3666.3,3666.2,6.61508627]
[1732969468690,2.235,3666.3,3666.2,6.61508627]
[1732969470382,3.345,3666.3,3666.2,6.61508627]
[1732969471287,3.345,3666.3,3666.2,7.70598927]
[1732969471942,4.455,3666.3,3666.2,7.70598927]
[1732969473695,5.565,3666.3,3666.2,7.70598927]
[1732969475347,6.675,3666.3,3666.2,7.70598927]
[1732969476982,7.785,3666.3,3666.2,7.70598927]
[1732969478586,9.3886,3666.3,3666.2,7.70598927]
[1732969478761,10.4986,3666.3,3666.2,6.61508627]
[1732969478965,10.4986,3666.3,3666.2,7.70600127]
[1732969480502,11.6086,3666.3,3666.2,7.70600127]
[1732969482249,12.7186,3666.3,3666.2,7.70600127]
[1732969483947,12.225,3666.3,3666.2,8.6504646]
[1732969485798,13.335,3666.3,3666.2,8.6504646]
[1732969487377,14.445,3666.3,3666.2,8.6504646]
[1732969489000,8.73615,3666.3,3666.2,8.6504646]
[1732969490677,8.48238,3666.3,3666.2,8.6504646]
[1732969491511,1e-05,3666.3,3666.2,9.94563574]
[1732969491700,1e-05,3666.3,3666.2,9.00117241]
[1732969492219,1.6377,3666.9,3666.8,6.54997]
[1732969492516,1.6427,3667.1,3667.0,0.2728]
[1732969492713,1.6427,3667.1,3667.0,6.54982]
[1732969492882,1.6427,3667.1,3667.0,6.61390946]
[1732969493278,0.005,3667.1,3667.0,7.55837279]
[1732969494213,1.115,3667.1,3667.0,6.61390946]
[1732969495677,2.225,3667.1,3667.0,6.61390946]
[1732969495916,3.8813,3667.1,3667.0,6.06390946]
[1732969497190,3.8813,3667.1,3667.0,6.61390946]
[1732969497515,4.9913,3667.1,3667.0,6.61390946]
[1732969499118,6.1013,3667.1,3667.0,6.61390946]
[1732969501185,4.445,3667.1,3667.0,7.15677447]
[1732969502022,4.445,3667.1,3667.0,7.92097447]
[1732969502515,4.445,3667.1,3667.0,7.15677447]
[1732969506828,5.555,3667.1,3667.0,7.15677447]
[1732969507716,7.2215,3667.1,3667.0,7.15677447]
[1732969508294,8.3315,3667.1,3667.0,7.15677447]
[1732969510118,9.4415,3667.1,3667.0,7.15677447]
[1732969510454,7.775,3667.1,3667.0,7.53247581]
[1732969510757,9.2798,3667.1,3667.0,3.06390946]
[1732969510956,10.0573,3667.1,3667.0,2.79110946]
[1732969511526,10.0573,3667.1,3667.0,0.06408946]
[1732969511726,1.5048,3667.0,3665.8,1.22924325]
[1732969511935,1.5048,3667.0,3666.0,1.090986]
[1732969512253,2.62153,3666.9,3666.8,2.72717]
[1732969512608,2.62153,3666.9,3666.6,2.72726]
[1732969512967,2.62153,3666.9,3666.7,2.72724]
[1732969512968,1.5048,3666.8,3666.7,2.72724]
[1732969513148,1.5048,3666.8,3666.7,5.72724]
[1732969513323,2.6148,3666.8,3666.7,5.72724]
[1732969513630,3.954203,3666.8,3666.7,5.72724]
[1732969514909,3.954203,3666.8,3666.5,2.72739]
[1732969514910,1.5843,3666.7,3666.5,2.72737]
[1732969515116,1.5843,3666.7,3666.6,2.72732]
[1732969516158,1.5843,3666.7,3666.5,2.72737]
[1732969516336,0.41685088,3666.6,3666.5,5.72737]
[1732969516538,0.41685088,3666.6,3665.9,1.641043]
[1732969516539,1.5843,3666.5,3666.4,5.72746]
[1732969518494,2.6943,3666.5,3666.4,5.72746]
[1732969519162,2.6943,3666.5,3666.4,5.78336822]
[1732969519366,3.47235539,3666.5,3666.4,0.05590822]
[1732969519575,3.47235539,3666.5,3666.4,2.78337822]
[1732969520142,4.58235539,3666.5,3666.4,2.78337822]
[1732969521983,5.69235539,3666.5,3666.4,2.78337822]
[1732969523878,6.80235539,3666.5,3666.4,2.78337822]
[1732969525094,6.90235539,3666.5,3666.4,0.05590822]
[1732969525301,0.1,3666.3,3665.8,3.0]
[1732969525584,0.1,3666.3,3664.8,0.7642]
[1732969525585,1.5843,3665.9,3665.5,2.72812]
[1732969525748,0.94446333,3665.8,3665.3,2.72827]
[1732969525950,0.94446333,3665.4,3665.1,3.819813]
[1732969526258,1.5843,3665.3,3665.1,2.72842]
[1732969526470,1.5843,3665.3,3665.2,2.72836]
[1732969527098,1.5843,3665.3,3665.2,5.72836]
[1732969527254,2.6943,3665.3,3665.2,5.72836]
[1732969528948,3.8043,3665.3,3665.2,5.72836]
[1732969529151,3.8545,3665.3,3665.2,5.72836]
[1732969529975,3.8545,3665.3,3665.2,5.78136483]
[1732969530408,3.8545,3665.3,3665.2,0.05300483]
[1732969530409,4.33439633,3665.3,3665.2,0.05300483]
[1732969530693,5.44439633,3665.3,3665.2,0.05300483]
[1732969530903,5.44439633,3665.3,3665.0,2.72845]
[1732969531067,1.6345,3665.2,3665.0,2.72845]
[1732969532217,1.11,3665.2,3665.0,2.72845]
[1732969532402,2.22093597,3665.1,3665.0,2.72845]
[1732969532829,1.6345,3665.1,3665.0,2.72845]
[1732969533811,2.7445,3665.1,3665.0,2.72845]
[1732969535487,3.8545,3665.1,3665.0,2.72845]
[1732969537214,4.9645,3665.1,3665.0,2.72845]
[1732969538794,6.0745,3665.1,3665.0,2.72845]
[1732969540441,7.1845,3665.1,3665.0,2.72845]
[1732969541082,7.1845,3665.1,3665.0,5.72845]
[1732969541955,8.2945,3665.1,3665.0,5.72845]
[1732969543315,9.57016033,3665.1,3665.0,5.72845]
[1732969543768,10.68016033,3665.1,3665.0,5.72845]
[1732969543951,10.68016033,3665.1,3664.9,3.0]
[1732969544151,1.6285,3665.0,3664.9,3.0]
[1732969544406,1.6285,3665.0,3664.9,2.72858]
[1732969544558,1.6285,3665.0,3664.9,5.72858]
[1732969545019,1.6285,3665.0,3664.9,5.78205314]
[1732969545359,2.7385,3665.0,3664.9,5.78205314]
[1732969547071,3.8485,3665.0,3664.9,5.78205314]
[1732969548706,4.9585,3665.0,3664.9,5.78205314]
[1732969549974,7.61981333,3665.0,3664.9,0.05347314]
[1732969550368,8.72981333,3665.0,3664.9,0.05347314]
[1732969550860,8.82981333,3665.0,3664.9,0.05347314]
[1732969551304,7.20131333,3665.0,3664.6,3.0]
[1732969551462,1.5568,3664.9,3664.6,3.0]
[1732969551657,1.5568,3664.7,3664.6,3.0]
[1732969552065,2.6668,3664.7,3664.6,2.72881]
[1732969552276,2.6668,3664.7,3664.6,5.72881]
[1732969553672,3.7768,3664.7,3664.6,5.72881]
[1732969555291,4.8868,3664.7,3664.6,5.72881]
[1732969555761,4.8868,3664.7,3664.5,3.0]
[1732969555987,4.8868,3664.7,3664.4,1.091695]
[1732969556375,5.43557651,3664.7,3664.4,1.091695]
[1732969556857,6.54557651,3664.7,3664.4,1.091695]
[1732969558615,7.65557651,3664.7,3664.4,1.091695]
[1732969559072,7.65557651,3664.7,3664.2,0.2727]
[1732969559274,7.65557651,3664.7,3664.2,1.364426]
[1732969559573,1.03528512,3664.6,3664.3,0.05375865]
[1732969560310,2.14528512,3664.6,3664.3,3.05375865]
[1732969560464,3.08974845,3664.6,3664.3,3.05375865]
[1732969560658,2.14528512,3664.6,3664.3,3.05375865]
[1732969560911,1.11,3664.6,3664.3,0.05375865]
[1732969561206,1.5518,3664.5,3664.1,1.091773]
[1732969561410,1.5518,3664.5,3664.4,0.05380812]
[1732969561714,1.5518,3664.5,3664.4,0.05382277]
[1732969561919,1.5518,3664.5,3664.1,4.091773]
[1732969561920,2.6618,3664.5,3664.1,4.091773]
[1732969562067,2.6618,3664.5,3664.4,0.05385476]
[1732969562273,3.91858512,3664.5,3664.1,1.091773]
[1732969562469,1.5518,3664.3,3664.1,1.091773]
[1732969562706,1.5518,3664.3,3663.9,2.72928]
[1732969563007,1.5518,3664.3,3664.0,1.091814]
[1732969563473,2.6618,3664.3,3664.0,1.091814]
[1732969564009,2.6618,3664.3,3664.0,3.821064]
[1732969564741,1.5518,3664.2,3664.0,1.091814]
[1732969565265,3.25910485,3664.2,3664.0,1.091814]
[1732969565621,3.25910485,3664.2,3664.0,3.821064]
[1732969565930,4.20356818,3664.2,3664.0,1.091814]
[1732969566132,4.20356818,3664.2,3663.6,3.0]
[1732969566335,4.20356818,3664.2,3663.3,3.2727]
[1732969566336,1.5518,3663.9,3663.8,1.091876]
[1732969566637,2.12733682,3663.9,3663.4,2.72969]
[1732969566845,0.94446333,3663.7,3663.5,1.091958]
[1732969566990,0.94446333,3663.7,3663.2,2.72982]
[1732969567336,0.94446333,3663.7,3663.1,2.72985]
[1732969567337,1.5518,3663.6,3663.3,2.72971]
[1732969567491,1.5518,3663.6,3663.5,2.72963]
[1732969567695,1.5518,3663.6,3663.3,2.72971]
[1732969568404,2.6618,3663.6,3663.3,2.72971]
[1732969569104,2.6618,3663.6,3663.4,2.72967]